[Event "Kwalificatie NJK B Groningen"]
[Site "Hoogkerk, Netherlands"]
[Date "2023.02.19"]
[Round "7.8"]
[White "Ambrona Navarro, Himar"]
[Black "Chua, Ethan"]
[Result "1/2-1/2"]
[TimeControl "55 min. + 10 sec./zet"]
[WhiteElo "1847"]
[BlackElo "1718"]

1. d4 {[%clk 00:55:18]} Nf6 {[%clk 00:55:18]} 2. Bg5 {[%clk 00:55:21]} e6
{[%clk 00:55:07]} 3. e3 {[%clk 00:55:15]} c5 {[%clk 00:54:49]} 4. Nf3 {[%clk
00:55:04]} {[%emt 00:00:19]} d5 {[%clk 00:54:22]} {[%emt 00:00:44]} 5. Bd3
{[%clk 00:54:31]} {[%emt 00:00:43]} Be7 {[%clk 00:54:02]} {[%emt 00:01:24]} 6.
Nbd2 {[%clk 00:54:07]} Nc6 {[%clk 00:53:44]} {[%emt 00:01:19]} 7. c3 {[%clk
00:54:01]} cxd4 {[%clk 00:53:41]} 8. exd4 {[%clk 00:53:51]} O-O {[%clk
00:53:05]} {[%emt 00:00:57]} 9. O-O {[%clk 00:53:43]} h6 {[%clk 00:53:04]} 10.
Bf4 {[%clk 00:52:25]} {[%emt 00:01:55]} Bd6 {[%clk 00:51:06]} {[%emt 00:01:52]}
11. Bxd6 {[%clk 00:49:21]} {[%emt 00:01:21]} Qxd6 {[%clk 00:51:13]} {[%emt
00:02:51]} 12. Re1 {[%clk 00:49:23]} b6 {[%clk 00:49:50]} {[%emt 00:00:24]} 13.
h3 {[%clk 00:48:26]} {[%emt 00:01:11]} Bb7 {[%clk 00:49:40]} {[%emt 00:00:31]}
14. Qc2 {[%clk 00:47:55]} {[%emt 00:00:33]} Rac8 {[%clk 00:49:39]} {[%emt
00:00:10]} 15. a3 {[%clk 00:46:39]} {[%emt 00:01:50]} Rfe8 {[%clk 00:49:34]}
{[%emt 00:00:10]} 16. Re2 {[%clk 00:44:24]} {[%emt 00:02:27]} Nd7 {[%clk
00:32:31]} {[%emt 00:17:52]} 17. Nb3 {[%clk 00:38:23]} {[%emt 00:05:57]} e5
{[%clk 00:31:16]} {[%emt 00:00:40]} 18. dxe5 {[%clk 00:37:57]} {[%emt
00:00:29]} Ndxe5 {[%clk 00:31:13]} {[%emt 00:01:10]} 19. Nxe5 {[%clk 00:37:25]}
Rxe5 {[%clk 00:30:42]} {[%emt 00:01:16]} 20. Rxe5 {[%clk 00:36:08]} {[%emt
00:01:01]} Qxe5 {[%clk 00:30:37]} 21. Qe2 {[%clk 00:35:41]} {[%emt 00:00:48]}
Qg5 {[%clk 00:29:36]} {[%emt 00:00:57]} 22. Re1 {[%clk 00:34:38]} {[%emt
00:02:01]} g6 {[%clk 00:28:45]} {[%emt 00:00:22]} 23. Qe3 {[%clk 00:33:11]}
{[%emt 00:01:22]} Qxe3 {[%clk 00:27:45]} {[%emt 00:01:33]} 24. Rxe3 {[%clk
00:33:08]} {[%emt 00:00:30]} Kf8 {[%clk 00:27:19]} 25. Bb5 {[%clk 00:32:29]}
{[%emt 00:00:44]} Re8 {[%clk 00:26:48]} {[%emt 00:00:48]} 26. Rxe8+ {[%clk
00:31:14]} {[%emt 00:01:56]} Kxe8 {[%clk 00:26:53]} 27. Bxc6+ {[%clk 00:31:16]}
Bxc6 {[%clk 00:26:57]} 28. Nd4 {[%clk 00:31:14]} {[%emt 00:00:04]} Bb7 {[%clk
00:24:30]} {[%emt 00:02:26]} 29. Kh2 {[%clk 00:30:06]} {[%emt 00:02:08]} Kd7
{[%clk 00:24:00]} 30. Kg3 {[%clk 00:29:52]} {[%emt 00:00:46]} Kd6 {[%clk
00:22:00]} {[%emt 00:02:41]} 31. Kf4 {[%clk 00:27:29]} {[%emt 00:01:51]} Ba6
{[%clk 00:20:48]} {[%emt 00:01:39]} 32. g3 {[%clk 00:26:21]} {[%emt 00:00:45]}
Bc8 {[%clk 00:19:33]} {[%emt 00:02:41]} 33. Ke4 {[%emt 00:00:23]} Ke5+ 1/2-1/2

[Event "Kwalificatie NJK B Groningen"]
[Site "Hoogkerk, Netherlands"]
[Date "2023.02.19"]
[Round "7.9"]
[White "Ponomarev, Ivan"]
[Black "Gergin, Isafara"]
[Result "0-1"]
[TimeControl "55 min. + 10 sec./zet"]
[WhiteElo "1801"]
[BlackElo "1688"]

1. c4 {[%emt 00:41:07]} Nf6 2. g3 g6 3. Bg2 Bg7 4. Nc3 {[%emt 00:00:58]} O-O 5.
d4 {[%emt 00:00:17]} d6 {[%emt 00:00:13]} 6. Nf3 {[%emt 00:01:03]} Nbd7 {[%emt
00:01:29]} 7. e4 {[%emt 00:04:21]} e5 {[%emt 00:00:54]} 8. d5 {[%emt 00:02:39]}
a5 {[%emt 00:03:08]} 9. O-O {[%emt 00:01:49]} Nc5 10. Qc2 {[%emt 00:04:48]} Ne8
{[%emt 00:02:44]} 11. Be3 {[%emt 00:03:15]} f5 {[%emt 00:02:25]} 12. Bxc5
{[%emt 00:02:36]} dxc5 {[%emt 00:00:28]} 13. a3 {[%emt 00:06:16]} Nd6 {[%emt
00:04:07]} 14. Nd2 Bd7 {[%emt 00:07:45]} 15. b4 {[%emt 00:06:04]} cxb4 {[%emt
00:04:28]} 16. axb4 {[%emt 00:00:51]} axb4 {[%emt 00:00:15]} 17. Na2 {[%emt
00:02:44]} Qf6 {[%clk 00:00:00]} {[%emt 00:07:40]} 18. Nxb4 f4 {[%emt
00:10:38]} 19. Nd3 {[%emt 00:03:15]} b6 {[%emt 00:01:34]} 20. Rxa8 {[%emt
00:01:05]} Rxa8 {[%emt 00:01:40]} 21. gxf4 {[%emt 00:02:03]} Nf7 {[%emt
00:02:51]} 22. fxe5 {[%emt 00:00:43]} Nxe5 {[%emt 00:00:19]} 23. Nxe5 {[%emt
00:00:08]} Qxe5 {[%emt 00:00:10]} 24. Nf3 {[%emt 00:02:00]} Qf4 {[%emt
00:00:34]} 25. Re1 {[%emt 00:00:46]} Bg4 {[%emt 00:00:50]} 26. Nd2 {[%emt
00:03:36]} Be5 {[%emt 00:03:06]} 27. Nf1 {[%emt 00:00:42]} Rf8 {[%emt
00:02:08]} 28. Ng3 {[%emt 00:00:35]} h5 {[%emt 00:01:00]} 29. h4 {[%emt
00:01:52]} Bd4 30. e5 {[%emt 00:00:39]} Bxf2+ {[%emt 00:00:39]} 31. Kh1 Bf5
{[%emt 00:02:04]} 32. Nxf5 {[%emt 00:00:05]} Rxf5 {[%emt 00:00:12]} 33. Re4
{[%emt 00:00:05]} Qg3 {[%emt 00:00:46]} 34. Qa4 {[%emt 00:00:23]} Be3 {[%emt
00:00:35]} 35. Qe8+ {[%emt 00:00:21]} Rf8 36. Qe6+ {[%emt 00:00:50]} Kg7 37. d6
Bf4 {[%emt 00:00:04]} 38. Rxf4 {[%emt 00:00:05]} Qxf4 {[%emt 00:00:04]} 39.
Qe7+ {[%emt 00:01:04]} Rf7 40. Qxc7 Rxc7 41. dxc7 Qf5 42. Bb7 0-1